bitfinex/quotes_ETHUSD_20220202
["timestamp","ask_amount","ask_price","bid_price","bid_amount"]
[1643785158222,0.67831642,2755.4,2754.8,0.3]
[1643785158223,2.21239183,2755.4,2754.8,0.3]
[1643785158422,1.53399244,2755.3,2754.8,0.3]
[1643785158626,1.53399244,2755.2,2754.8,0.3]
[1643785158855,1.53399244,2755.1,2754.8,0.3]
[1643785159055,1.53399244,2755.0,2754.8,0.68889818]
[1643785159262,0.97831642,2755.5,2754.8,0.3]
[1643785159263,1.53399244,2754.9,2754.8,0.3]
[1643785159456,1.53399244,2755.2,2754.8,0.3]
[1643785159856,1.83399244,2755.2,2754.8,0.3]
[1643785160060,1.53399244,2755.1,2754.8,0.3]
[1643785161062,1.53399244,2755.0,2754.8,0.3]
[1643785161258,1.53399244,2754.9,2754.8,0.3]
[1643785161462,1.53399244,2754.9,2754.7,0.9073574]
[1643785161666,3.53399244,2754.8,2754.6,0.1814]
[1643785161869,1.53399244,2754.7,2754.6,0.1814]
[1643785162063,5.08399244,2754.7,2754.6,0.1814]
[1643785162362,1.83399244,2754.7,2754.6,0.1814]
[1643785162606,1.53399244,2754.7,2754.6,0.1814]
[1643785162808,1.53399244,2754.7,2754.3,0.35185615]
[1643785163005,2.0,2755.3,2754.3,0.35185615]
[1643785163204,1.71542176,2755.2,2754.3,0.53325615]
[1643785163405,1.53402176,2755.1,2754.3,0.83325615]
[1643785163607,1.53402176,2755.0,2754.3,1.83325615]
[1643785163807,0.87697949,2755.1,2754.4,0.79695733]
[1643785164006,1.53402176,2755.0,2754.4,0.79695733]
[1643785164207,1.92100637,2755.0,2754.5,0.1814]
[1643785164413,1.53402176,2754.9,2754.4,0.1814]
[1643785164607,1.53402176,2754.8,2754.4,0.1814]
[1643785164807,0.87697949,2755.1,2754.4,0.1814]
[1643785164808,1.53402176,2754.7,2754.4,0.1814]
[1643785165011,0.87697949,2755.1,2754.4,0.1814]
[1643785165209,1.5340563,2755.0,2754.4,0.1814]
[1643785167067,1.8340563,2755.0,2754.4,0.1814]
[1643785167258,1.5340563,2754.9,2754.2,0.1814]
[1643785168259,1.5340563,2754.9,2754.3,0.43768797]
[1643785168858,1.5340563,2754.8,2754.3,0.73768797]
[1643785169060,1.5340563,2754.7,2754.3,0.73768797]
[1643785169260,8.34697949,2755.1,2754.4,0.1814]
[1643785169460,1.83412376,2755.0,2754.3,0.3]
[1643785169671,1.53412376,2754.9,2754.2,0.1814]
[1643785169864,2.03161498,2754.8,2754.0,0.1814]
[1643785170112,1.53412376,2754.7,2754.0,0.1814]
[1643785170309,1.53412376,2754.7,2753.7,0.38965279]
[1643785170310,0.40833549,2754.4,2753.7,0.38965279]
[1643785170509,1.53412376,2754.3,2753.8,0.1814]
[1643785170712,0.89908826,2753.9,2753.8,0.1814]
[1643785171209,1.19908826,2753.9,2753.8,0.1814]
[1643785171719,1.19908826,2753.9,2753.1,1.18193]
[1643785171720,0.53623238,2753.7,2753.2,0.1814]
[1643785172017,1.64514433,2753.9,2753.2,0.1814]
[1643785172222,1.19908826,2753.9,2753.2,0.1814]
[1643785173015,1.19908826,2753.9,2753.2,0.4814]
[1643785173216,1.59926109,2753.9,2753.2,0.88526113]
[1643785173417,1.19908826,2753.9,2753.2,0.88526113]
[1643785173857,0.89908826,2753.9,2753.2,0.88526113]
[1643785174455,1.19908826,2753.9,2753.2,0.1814]
[1643785174658,1.53454724,2753.8,2753.2,0.1814]
[1643785174865,0.1814,2754.4,2753.2,0.1814]
[1643785175055,1.5343895,2754.3,2753.2,1.08916]
[1643785175254,0.1814,2754.2,2753.2,1.08916]
[1643785175655,0.1814,2754.2,2753.2,1.38916]
[1643785175855,0.39894335,2754.2,2753.5,0.38923152]
[1643785176056,2.22173324,2754.1,2753.2,0.1814]
[1643785176257,0.68736092,2754.1,2753.5,0.90768]
[1643785176462,0.01207207,2754.7,2753.5,1.8154324]
[1643785176463,0.1814,2754.6,2753.5,1.8154324]
[1643785176659,1.53431103,2754.5,2753.6,0.10189478]
[1643785176860,1.53431103,2754.5,2753.7,0.524]
[1643785177366,1.53431103,2754.4,2753.7,0.92589478]
[1643785177605,0.72251549,2754.3,2753.8,0.39313922]
[1643785177804,0.72251549,2754.3,2753.8,1.09853922]
[1643785178005,0.72251549,2754.3,2753.8,2.1080311]
[1643785178205,0.72251549,2754.3,2753.9,0.3]
[1643785178705,0.72251549,2754.3,2753.8,1.71489188]
[1643785178905,0.72251549,2754.3,2753.8,1.00949188]
[1643785179105,0.72251549,2754.3,2753.8,0.9075971]
[1643785179706,0.72251549,2754.3,2753.9,0.3]
[1643785179914,0.41966676,2754.1,2753.9,0.3]
[1643785180109,0.41966676,2754.1,2753.8,0.9075971]
[1643785180307,0.72251549,2754.3,2753.8,0.9075971]
[1643785180508,1.53433907,2754.2,2753.8,0.9075971]
[1643785181663,1.53433907,2754.2,2753.9,0.3]
[1643785182063,1.53433907,2754.2,2754.0,0.16892914]
[1643785182866,0.1814,2754.7,2754.0,0.16892914]
[1643785183172,1.53426822,2754.6,2754.0,0.16892914]
[1643785183371,0.3,2754.6,2754.0,0.35032914]
[1643785183565,1.53426822,2754.5,2754.0,0.35032914]
[1643785183766,1.97868002,2754.5,2754.0,0.35032914]
[1643785183965,1.53426822,2754.4,2754.0,0.35032914]
[1643785184565,2.30340089,2754.4,2754.0,0.35032914]
[1643785184767,1.53426822,2754.3,2754.0,0.35032914]
[1643785187009,1.53426822,2754.3,2754.1,2.7226593]
[1643785187210,1.53426822,2754.3,2754.2,0.16892914]
[1643785189057,1.86979151,2754.3,2754.2,0.16892914]
[1643785189260,1.86844318,2754.3,2754.2,0.16892914]
[1643785191663,1.53291989,2754.3,2754.2,0.16892914]
[1643785192066,0.1814,2754.6,2754.2,0.46892914]
[1643785192361,7.47,2754.7,2754.2,0.46892914]
[1643785193910,0.41066937,2754.6,2754.2,0.46892914]
[1643785194310,1.26922372,2754.6,2754.2,0.46892914]
[1643785195113,0.85855435,2754.6,2754.2,0.46892914]
[1643785195721,7.47,2754.7,2754.4,0.16892914]
[1643785195920,7.47,2754.7,2754.5,0.16892914]
[1643785196119,7.47,2754.7,2754.5,0.60256193]
[1643785196783,7.47,2754.7,2754.5,1.37903978]
[1643785197185,7.47,2754.7,2754.6,1.60027914]
[1643785197383,7.47,2754.7,2754.6,1.90027914]
[1643785197583,1.25293254,2755.1,2754.6,1.90027914]
[1643785198000,1.25293254,2755.1,2754.6,0.46892914]
[1643785199089,3.55,2755.0,2754.5,2.41205601]
[1643785199288,4.22831642,2755.0,2754.5,2.41205601]
[1643785199488,0.97831642,2755.0,2754.5,2.41205601]
[1643785200327,0.97831642,2755.0,2754.4,0.9076219]
[1643785200328,0.1814,2754.9,2754.4,0.9076219]
[1643785201328,0.86538299,2754.5,2754.4,0.9076219]
[1643785201528,0.86538299,2754.5,2754.1,1.8152437]
[1643785202126,0.0269124,2754.3,2754.1,1.8152437]
[1643785202329,0.86538299,2754.5,2754.1,1.8152437]
[1643785202532,0.35839833,2754.2,2754.0,1.8153576]
[1643785203528,0.38531073,2754.2,2754.0,1.8153576]
[1643785203761,0.35839833,2754.2,2753.7,1.8155183]
[1643785204769,0.70048656,2754.0,2753.7,1.8155183]
[1643785205166,0.0269124,2753.8,2753.7,2.1155183]
[1643785205366,0.0269124,2753.8,2753.7,1.8155183]
[1643785205572,0.0269124,2753.8,2753.4,0.25]
[1643785205773,0.0269124,2753.8,2753.2,0.1814]
[1643785205774,3.08723058,2753.9,2753.2,0.1814]
[1643785205968,3.08723058,2753.9,2752.7,0.1814]
[1643785205969,0.1814,2753.8,2752.7,0.1814]
[1643785206168,0.1814,2753.8,2752.7,1.9976433]
[1643785206366,0.78808735,2753.0,2752.7,1.9976433]
[1643785206567,0.0269124,2752.8,2752.7,1.9976433]
[1643785207809,0.0269124,2752.8,2752.7,2.2976433]
[1643785208010,0.0269124,2752.8,2752.7,3.2976433]
[1643785208814,0.0269124,2752.8,2752.7,1.9976433]
[1643785209012,0.0269124,2752.8,2752.5,0.1816]
[1643785209212,2.28636382,2753.2,2752.6,1.32781831]
[1643785209412,2.28636382,2753.2,2752.6,2.65563662]
[1643785209413,1.53479261,2753.1,2752.6,2.65563662]
[1643785209615,1.83479261,2753.1,2752.6,2.65563662]
[1643785209812,1.83479261,2753.1,2752.7,0.4493724]
[1643785209813,0.3,2753.1,2752.7,0.4493724]
[1643785210015,0.1816,2753.2,2752.7,0.4493724]
[1643785210016,0.4816,2753.2,2752.7,0.4493724]
[1643785210314,1.5348,2753.1,2752.6,2.65563662]
[1643785210616,0.3,2753.2,2752.7,2.06224899]
[1643785210814,0.1816,2753.5,2752.6,3.56368662]
[1643785211022,0.0269124,2752.9,2752.7,0.9081286]
[1643785211281,0.1816,2753.5,2752.8,0.35441867]
[1643785211476,0.1816,2753.5,2752.7,1.0]
[1643785211674,0.1816,2753.5,2753.0,0.75852893]
[1643785211875,0.1816,2753.5,2753.0,1.05852893]
[1643785212678,0.0269124,2753.2,2753.0,1.05852893]
[1643785212876,0.1816,2753.5,2753.1,0.40445401]
[1643785213281,0.1816,2753.5,2753.0,2.1158669]
[1643785213476,0.27639994,2753.6,2753.0,2.1158669]
[1643785214079,0.0269124,2753.3,2753.1,2.96221032]
[1643785214277,1.0,2754.1,2753.1,1.70793378]
[1643785214278,0.1814,2754.0,2753.1,1.70793378]
[1643785214476,0.1814,2754.0,2753.4,1.32781831]
[1643785214477,1.53445857,2753.9,2753.4,1.32781831]
[1643785214678,1.53445857,2753.9,2753.4,2.65563662]
[1643785214882,1.83445857,2753.9,2753.4,2.65563662]
[1643785215122,2.33442446,2753.8,2753.4,2.97585209]
[1643785215323,0.79996589,2753.8,2753.4,2.97585209]
[1643785215626,0.0269124,2753.6,2753.4,2.65563662]
[1643785216023,0.0269124,2753.6,2753.5,0.9078599]
[1643785218025,0.0269124,2753.6,2753.5,1.6453599]
[1643785218627,0.0269124,2753.6,2753.5,1.8726599]
[1643785219759,0.0269124,2753.6,2753.5,0.9648]
[1643785219958,0.0269124,2753.6,2753.5,3.62043662]
[1643785220563,2.82799944,2754.7,2753.5,3.62043662]
[1643785220564,0.1815,2754.1,2753.5,3.62043662]
[1643785220765,0.1815,2754.1,2753.6,1.0]
[1643785220965,0.1814,2754.5,2753.7,0.524]
[1643785221369,0.1814,2754.5,2753.8,0.36584942]
[1643785221565,3.83,2754.6,2754.1,0.93962362]
[1643785221764,0.90767259,2754.8,2754.1,5.09391722]
[1643785221765,1.5341067,2754.5,2754.1,5.09391722]
[1643785221964,1.5341067,2754.4,2754.1,5.39391722]
[1643785222164,1.5341067,2754.7,2754.1,5.09391722]
[1643785222366,1.53409806,2754.6,2754.2,0.35356412]
[1643785222630,0.1814,2755.1,2754.3,1.43143]
[1643785222826,1.53397681,2755.0,2754.3,2.3387857]
[1643785223028,1.53397681,2754.9,2754.3,2.3387857]
[1643785223224,2.1814,2755.3,2754.4,0.3]
[1643785223426,0.76340603,2755.1,2754.5,0.524]
[1643785223628,1.53388655,2755.0,2754.5,1.3306]
[1643785224126,1.53388655,2755.0,2754.5,3.1453797]
[1643785224328,1.53388655,2755.0,2754.6,0.3]
[1643785224528,0.1814,2755.4,2754.7,0.93686134]
[1643785224529,1.53388655,2755.3,2754.7,0.93686134]
[1643785224732,0.1814,2755.4,2754.7,0.93686134]
[1643785224733,1.53388655,2755.2,2754.7,0.93686134]
[1643785224930,1.53388655,2755.3,2754.7,0.93686134]
[1643785225131,0.1814,2755.4,2755.0,1.32781831]
[1643785225132,1.53388655,2755.2,2755.0,1.32781831]
[1643785225331,0.1814,2755.4,2755.0,2.65563662]
[1643785225332,1.53388655,2755.1,2755.0,2.65563662]
[1643785225631,2.21116223,2755.3,2755.0,2.65563662]
[1643785225832,1.53388655,2755.2,2755.0,2.65563662]
[1643785227389,0.8250718,2755.5,2755.1,0.32878461]
[1643785227586,1.53370513,2755.4,2755.1,1.39998461]
[1643785229386,1.0405748,2755.6,2755.1,1.39998461]
[1643785229586,1.5337082,2755.5,2755.1,1.39998461]
[1643785230010,2.34646908,2755.5,2755.1,1.39998461]
[1643785230212,0.81276088,2755.5,2755.1,1.39998461]
[1643785230410,0.81276088,2755.5,2755.3,1.32781831]
[1643785230615,0.81276088,2755.5,2755.3,3.56292062]
[1643785231212,0.7405748,2755.6,2755.3,3.56292062]
[1643785231416,1.53368694,2755.5,2755.3,4.58602062]
[1643785231821,0.1814,2755.9,2755.4,3.35]
[1643785232021,3.90571994,2756.5,2755.4,1.0]
[1643785232022,0.1814,2756.0,2755.4,1.0]
[1643785232220,1.53350795,2755.9,2755.5,1.7311167]
[1643785232426,0.1814,2756.4,2755.5,1.7311167]
[1643785232427,1.53350795,2756.3,2755.7,0.78773565]
[1643785232617,0.81894341,2756.4,2755.7,1.99479565]
[1643785232618,1.53345029,2756.2,2755.7,1.99479565]
[1643785232819,0.1814,2756.5,2756.1,0.42106627]
[1643785233019,1.53339415,2756.4,2756.1,1.46166627]
[1643785233218,1.53339415,2756.3,2756.1,1.46166627]
[1643785233418,1.10893806,2756.8,2756.1,1.46166627]
[1643785233419,1.53339415,2756.2,2756.1,1.46166627]
[1643785233619,1.53339415,2756.2,2756.1,1.0406]
[1643785234065,1.53339415,2756.2,2756.1,1.9476333]
[1643785234667,1.53339415,2756.2,2756.1,2.29940835]
[1643785234868,0.1814,2756.7,2756.1,2.29940835]
[1643785235068,1.53325653,2756.6,2756.1,2.59940835]
[1643785235466,1.53325653,2756.5,2756.1,2.59940835]
[1643785235666,0.1812,2757.0,2756.1,2.59940835]
[1643785235868,0.79262678,2756.7,2756.6,1.32781831]
[1643785236067,2.27587697,2756.7,2756.6,1.32781831]
[1643785236270,6.58582355,2757.2,2756.6,1.32781831]
[1643785236271,0.1813,2757.0,2756.6,1.32781831]
[1643785236674,2.1812,2757.4,2756.6,1.32781831]
[1643785236871,0.67831642,2757.6,2756.6,1.32781831]
[1643785236872,0.1812,2757.5,2756.6,1.32781831]
[1643785237181,0.75804197,2757.1,2756.6,1.32781831]
[1643785240430,1.57180467,2757.0,2756.6,1.32781831]
[1643785240634,1.74830619,2757.0,2756.6,1.32781831]
[1643785241033,0.1812,2757.0,2756.8,1.32781831]
[1643785241266,0.1812,2757.0,2756.8,2.65563662]
[1643785243675,7.84999999,2756.9,2756.8,2.65563662]
[1643785243875,8.90263396,2756.9,2756.8,0.20225068]
[1643785244273,7.16265721,2756.8,2755.5,0.1812]
[1643785244472,2.25996904,2756.7,2755.4,1.3661]
[1643785244674,0.4814,2756.7,2755.4,1.3661]
[1643785244875,0.1814,2756.7,2755.4,1.3661]
[1643785245119,2.26597482,2756.7,2755.4,1.3661]
[1643785245315,0.4814,2756.7,2755.5,0.32744562]
[1643785245713,0.1814,2756.7,2755.5,0.32744562]
[1643785246615,0.69174093,2756.3,2755.5,0.32744562]
[1643785247623,0.99174093,2756.3,2755.5,0.32744562]
[1643785247816,0.69174093,2756.3,2755.5,0.32744562]
[1643785248315,1.17314093,2756.3,2755.5,0.32744562]
[1643785248767,0.1814,2756.3,2756.1,0.34701552]
[1643785248970,7.47,2756.4,2755.6,0.1814]
[1643785249367,7.47,2756.4,2755.6,2.31189732]
[1643785249565,7.47,2756.4,2755.6,2.61189732]
[1643785249964,7.47,2756.4,2756.0,0.82147816]
[1643785250366,7.47,2756.4,2756.3,0.39044489]
[1643785250567,0.01201319,2756.9,2756.3,0.39044489]
[1643785250769,0.01201319,2756.9,2756.0,0.82147816]
[1643785250966,0.01201319,2756.9,2756.0,1.12147816]
[1643785251167,0.01201319,2756.9,2756.0,2.02844626]
[1643785251370,0.72212011,2756.7,2756.0,2.02844626]
[1643785251770,0.72212011,2756.7,2756.2,0.34290622]
[1643785251970,0.72212011,2756.7,2756.0,0.9069681]
[1643785252825,0.01201319,2756.9,2756.0,0.9069681]
[1643785253017,0.01201319,2756.9,2756.1,0.1812]
[1643785253216,0.1812,2757.1,2756.1,0.1812]
[1643785253418,0.1812,2757.1,2756.2,0.9069003]
[1643785253618,0.1812,2757.1,2756.1,0.1812]
[1643785253619,2.1335902,2757.1,2756.1,0.1812]
[1643785253818,2.2523902,2757.1,2756.1,0.1812]
[1643785254017,0.69719411,2756.5,2756.0,0.1812]
[1643785254416,2.32265144,2756.9,2755.9,0.1814]
[1643785254625,1.1812,2757.0,2755.9,2.0461087]
[1643785254626,0.1812,2757.0,2755.9,2.0461087]
[1643785254819,2.0,2757.1,2755.9,2.0461087]
[1643785254820,2.1812,2757.1,2755.9,2.3461087]
[1643785255018,0.39471395,2756.9,2756.3,0.42464324]
[1643785255216,0.39471395,2756.9,2755.9,2.5970087]
[1643785255617,0.67771675,2756.5,2755.9,3.28607658]
[1643785255819,0.39471395,2756.9,2755.9,2.07747658]
[1643785256264,0.39471395,2756.9,2755.9,0.82576999]
[1643785256869,0.3,2756.8,2755.9,0.82576999]
[1643785257272,0.88844055,2756.5,2755.9,1.58319841]
[1643785257470,0.88844055,2756.5,2755.9,0.4814]
[1643785258573,0.42916721,2756.4,2755.9,0.4814]
[1643785258775,0.88844055,2756.5,2755.9,0.4814]
[1643785260029,2.41057056,2756.4,2755.9,0.1814]
[1643785260226,2.41057056,2756.4,2755.6,0.1814]
[1643785260836,2.41057056,2756.4,2755.2,0.1814]
[1643785260837,1.72779839,2756.3,2755.2,0.1814]
[1643785261031,4.18691853,2756.2,2755.2,0.56797004]
[1643785261227,2.0148208,2756.1,2755.2,0.38657004]
[1643785261431,3.65105556,2756.0,2755.2,0.38657004]
[1643785261631,1.5334208,2755.9,2755.2,0.38657004]
[1643785261831,1.5334208,2755.9,2755.1,3.4196]
[1643785261832,2.06406058,2755.8,2755.1,3.4196]
[1643785262032,2.06406058,2755.8,2755.1,0.4814]
[1643785262033,0.93598807,2755.6,2755.1,0.4814]
[1643785262231,0.93598807,2755.6,2755.1,0.1814]
[1643785262632,0.93598807,2755.6,2755.1,0.4814]
[1643785262833,0.93598807,2755.6,2755.1,0.1814]
[1643785263035,0.93598807,2755.6,2755.4,0.34705105]
[1643785263434,2.44649475,2756.0,2755.1,0.1814]
[1643785263635,1.53348971,2755.9,2755.1,0.1814]
[1643785263897,2.04781199,2755.8,2755.0,0.1814]
[1643785264093,1.54634867,2755.7,2754.8,0.25]
[1643785264395,1.54634867,2755.7,2754.4,0.326513]
[1643785264396,0.42801082,2755.0,2754.4,0.326513]
[1643785264588,0.42801082,2755.0,2754.4,0.145113]
[1643785264589,0.01078148,2755.0,2754.4,0.145113]
[1643785264790,1.19785258,2755.5,2754.4,0.145113]
[1643785264988,0.9117691,2754.9,2754.4,0.145113]
[1643785266289,3.53400568,2754.8,2754.4,0.145113]
[1643785266494,1.53400568,2754.7,2754.4,0.145113]
[1643785266698,0.1814,2754.6,2754.4,0.145113]
[1643785266892,6.78400568,2754.5,2754.4,0.145113]
[1643785267091,6.96540568,2754.5,2754.4,0.145113]
[1643785267291,8.26540568,2754.5,2754.4,0.145113]
[1643785267722,3.42111662,2754.5,2754.4,0.145113]
[1643785268124,2.42111662,2754.5,2754.4,0.145113]
[1643785268329,3.42111662,2754.5,2754.4,0.145113]
[1643785268526,2.42111662,2754.5,2754.4,0.145113]
[1643785268727,3.42111662,2754.5,2754.4,0.145113]
[1643785269025,0.72533002,2753.9,2753.4,1.1464]
[1643785269230,0.72533002,2753.9,2753.3,0.50357969]
[1643785270228,2.46214398,2754.3,2753.3,0.50357969]
[1643785270229,0.1814,2754.3,2753.3,1.10357969]
[1643785270433,0.0014157,2754.4,2753.4,0.18193]
[1643785270632,0.0014157,2754.4,2753.5,0.1814]
[1643785271380,0.79286566,2754.3,2753.5,0.1814]
[1643785271575,0.79286566,2754.3,2753.6,0.18193]
[1643785271776,0.79286566,2754.3,2753.7,0.1814]
[1643785272381,0.79286566,2754.3,2753.7,1.00401039]
[1643785272579,0.0014157,2754.4,2753.7,1.30401039]
[1643785273383,0.0014157,2754.4,2754.3,0.38227673]
[1643785273589,0.0014157,2754.4,2753.7,1.30401039]
[1643785273983,0.00013118,2754.4,2753.7,1.30401039]
[1643785274383,0.00013118,2754.4,2753.8,0.90761]
[1643785274584,0.00013118,2754.4,2753.9,0.1814]
[1643785275428,0.00013118,2754.4,2753.7,0.1814]
[1643785275627,0.89316216,2754.4,2753.7,1.00690188]
[1643785276229,0.89316216,2754.4,2754.2,0.44752782]
[1643785277231,0.00013118,2754.4,2754.2,0.44752782]
[1643785277432,0.00013118,2754.4,2753.7,1.91455188]
[1643785277632,0.00013118,2754.4,2753.7,1.30690188]
[1643785277833,0.00013118,2754.4,2753.8,2.52098]
[1643785278031,0.00013118,2754.4,2753.8,3.59405883]
[1643785278233,0.00013118,2754.4,2753.9,1.70187883]
[1643785278434,0.00013118,2754.4,2753.9,2.22587883]
[1643785278632,0.00013118,2754.4,2754.3,7.70739]
[1643785278881,0.00013118,2754.4,2754.3,9.41332]
[1643785279073,0.00013118,2754.4,2754.3,10.48402]
[1643785279275,0.00013118,2754.4,2754.3,10.18402]
[1643785279473,0.00013118,2754.4,2754.3,9.89472]
[1643785280674,0.00013118,2754.4,2754.3,9.59472]
[1643785281384,0.00013118,2754.4,2754.3,2.79472]
[1643785282831,0.00013118,2754.4,2754.3,2.27072]
[1643785284333,0.00013118,2754.4,2754.3,1.36333]
[1643785284533,0.00013118,2754.4,2754.3,0.1814]
[1643785284738,0.00013118,2754.4,2754.1,1.1796]
[1643785286473,0.00013118,2754.4,2753.8,2.3261]
[1643785287275,0.00013118,2754.4,2753.9,0.43890429]
[1643785293134,0.00013118,2754.4,2754.0,0.18193]
[1643785295082,0.00013118,2754.4,2754.1,0.1814]
[1643785297188,2.28268473,2754.8,2754.1,4.7]
[1643785297387,2.28268473,2754.8,2754.7,0.39742531]
[1643785297617,0.83567369,2754.9,2754.4,0.80849925]
[1643785297816,1.99173878,2754.8,2754.4,0.80849925]
[1643785298216,2.29173878,2754.8,2754.4,0.80849925]
[1643785298429,0.3,2754.8,2754.4,0.80849925]
[1643785298615,1.96518864,2754.8,2754.4,0.80849925]
[1643785298818,1.96518864,2754.8,2754.4,0.32616447]
[1643785299216,1.43567369,2754.9,2754.4,0.32616447]
[1643785299618,0.6,2754.9,2754.4,0.32616447]
[1643785299819,0.3,2755.0,2754.4,0.32616447]
[1643785300820,0.3,2755.0,2754.5,0.87522256]
[1643785301675,1.53379297,2754.9,2754.5,0.87522256]
[1643785302082,3.81110126,2754.9,2754.5,0.87522256]
[1643785302278,2.27730829,2754.9,2754.5,0.87522256]
[1643785302480,2.26009389,2754.9,2754.5,0.87522256]
[1643785302780,2.25259461,2754.9,2754.4,0.32616447]
[1643785302982,2.24893203,2754.9,2754.4,0.32616447]
[1643785303280,1.53381754,2754.8,2754.0,1.08897]
[1643785303486,0.01281945,2754.5,2753.8,0.25]
[1643785303690,1.53381754,2754.4,2753.6,0.1814]
[1643785303887,1.53381754,2754.4,2753.5,0.75146499]
[1643785303888,0.87824109,2754.2,2753.5,0.75146499]
[1643785304081,2.01521754,2754.1,2753.5,0.75146499]
[1643785304281,1.53381754,2754.0,2753.5,0.75146499]
[1643785304485,1.53381754,2754.0,2753.6,0.32797207]
[1643785306825,2.50022834,2754.1,2753.6,0.32797207]
[1643785307027,2.3658062,2754.1,2753.6,0.32797207]
[1643785307233,1.53425111,2754.0,2753.6,0.32797207]
[1643785307828,0.81647441,2753.7,2753.2,0.1814]
[1643785308030,2.02173913,2753.6,2753.2,0.1814]
[1643785308230,2.32173913,2753.6,2753.2,0.1814]
[1643785308430,3.32173913,2753.6,2753.2,0.1814]
[1643785308630,3.29861055,2753.6,2753.2,0.1814]
[1643785308881,0.3,2753.6,2753.3,0.44135427]
[1643785309083,0.33516142,2753.7,2753.3,0.44135427]
[1643785309283,0.524,2754.1,2753.3,0.44135427]
[1643785309284,0.1814,2754.0,2753.3,0.44135427]
[1643785309684,1.53431658,2753.9,2753.3,0.44135427]
[1643785309992,1.83431658,2753.9,2753.3,0.44135427]
[1643785310189,2.92480943,2753.8,2753.3,0.44135427]
[1643785310391,0.92402327,2753.8,2753.3,0.44135427]
[1643785310591,1.22402327,2753.8,2753.3,0.44135427]
[1643785310791,2.17183224,2753.8,2753.3,0.44135427]
[1643785310992,0.3,2753.7,2753.3,0.44135427]
[1643785311391,0.3,2753.7,2752.6,0.1814]
[1643785312193,0.3,2753.7,2752.9,0.77423909]
[1643785312393,0.90812,2753.6,2753.3,0.41941193]
[1643785312635,0.0368065,2753.6,2753.3,0.41941193]
[1643785312829,0.4814,2753.7,2753.3,0.41941193]
[1643785312830,0.51433165,2753.7,2753.3,0.41941193]
[1643785313029,1.99959831,2753.7,2752.6,0.1814]
[1643785313228,1.96666666,2753.7,2752.6,0.1814]
[1643785313632,0.71162332,2753.3,2752.7,0.94275921]
[1643785313829,1.96666666,2753.7,2752.8,0.1816]
[1643785314029,1.96666666,2753.7,2753.1,0.32665425]
[1643785314234,2.0,2753.7,2752.8,0.1816]
[1643785314435,2.0,2753.7,2752.5,0.1816]
[1643785314436,0.9082,2753.5,2752.5,0.1816]
[1643785314635,0.9082,2753.5,2752.2,0.1816]
[1643785314636,3.71613662,2753.4,2752.2,0.1816]
[1643785314834,3.71613662,2753.4,2751.9,4.46514141]
[1643785314835,0.90836,2753.1,2752.0,1.3538]
[1643785315038,0.90836,2753.1,2751.6,0.25]
[1643785315039,0.01234559,2752.7,2751.6,0.25]
[1643785315240,0.01234559,2752.7,2751.7,2.0]
[1643785315241,0.1816,2752.6,2751.7,2.0]
[1643785315435,0.1816,2752.8,2751.6,0.1816]
[1643785315634,0.1816,2752.8,2751.4,1.95]
[1643785315933,0.1816,2752.8,2751.5,0.1816]
[1643785316593,0.42756357,2752.6,2751.5,0.1316]
[1643785316797,0.72756357,2752.6,2751.5,0.1316]
[1643785316994,0.94423338,2752.6,2751.5,0.1316]
[1643785317193,0.3,2752.3,2751.6,0.75177995]
[1643785318795,0.3,2752.3,2751.7,0.00229941]
[1643785320037,2.14773631,2752.3,2751.7,0.00229941]
[1643785320234,3.32933631,2752.3,2751.7,0.00229941]
[1643785321940,2.32933631,2752.3,2751.7,0.00229941]
[1643785323770,1.22813295,2751.9,2751.4,0.00229225]
[1643785323972,1.56757854,2751.9,2751.4,0.00229225]
[1643785324172,0.33944559,2751.9,2751.4,0.00229225]
[1643785324373,0.3,2751.8,2751.4,0.00229225]
[1643785324576,0.3384815,2751.8,2751.4,0.00229225]
[1643785325171,0.32730556,2751.7,2751.4,0.00229225]
[1643785326982,0.62730556,2751.7,2751.4,0.00229225]
[1643785327182,0.65890316,2751.7,2751.4,0.00229225]
[1643785327641,0.3,2751.6,2751.4,0.00229225]
[1643785327842,0.33375746,2751.6,2751.4,0.00229225]
[1643785328042,1.99799196,2751.5,2751.4,0.00229225]
[1643785328746,0.33375746,2751.6,2750.9,0.25191915]
[1643785329053,0.87052417,2751.4,2750.9,0.25191915]
[1643785329245,0.87052417,2751.4,2750.9,0.00191915]
[1643785329745,1.47052417,2751.4,2750.9,0.00191915]
[1643785329949,1.50353155,2751.4,2750.9,0.00191915]
[1643785330345,1.49861684,2751.4,2750.9,0.00191915]
[1643785330546,1.9917647,2751.3,2750.9,0.00191915]
[1643785330746,2.9006465,2751.3,2750.9,0.00191915]
[1643785330953,0.3,2751.2,2750.9,0.00191915]
[1643785331147,1.99523052,2751.1,2750.9,0.00191915]
[1643785332216,0.3,2751.1,2750.9,0.00191915]
[1643785332387,0.33597202,2751.1,2750.9,0.00191915]
[1643785332586,1.50894,2751.2,2750.9,0.00191915]
[1643785332788,1.54480915,2751.2,2750.9,0.00191915]
[1643785333194,0.63586915,2751.2,2750.9,0.00191915]
[1643785333594,0.63586915,2751.2,2750.3,1.06288617]
[1643785333790,2.62747586,2751.2,2750.3,1.06288617]
[1643785334391,0.4215442,2750.8,2750.3,1.06288617]
[1643785334590,0.6,2751.2,2750.3,1.06288617]
[1643785334790,0.63226549,2751.2,2750.3,1.06288617]
[1643785335829,2.67697761,2751.2,2750.3,1.06288617]
[1643785336027,0.35868844,2751.0,2750.3,1.06288617]
[1643785336233,0.65868844,2751.0,2750.3,0.88118617]
[1643785336432,0.68872036,2751.0,2750.3,0.88118617]
[1643785336833,0.7207232,2750.9,2750.3,0.88118617]
[1643785337035,1.99719775,2750.8,2750.3,0.88118617]
[1643785337234,2.29719775,2750.8,2750.3,0.88118617]
[1643785337432,2.33097154,2750.8,2750.3,0.88118617]
[1643785337634,2.63097154,2750.8,2750.3,0.88118617]
[1643785337831,0.63377379,2750.8,2750.3,0.88118617]
[1643785338032,0.33986126,2750.8,2750.3,0.88118617]
[1643785338233,0.33473235,2750.8,2750.3,0.88118617]
[1643785338435,0.33473235,2750.8,2750.3,0.00193407]
[1643785338783,0.33473235,2750.8,2750.2,0.18365197]
[1643785338784,1.96319018,2750.7,2750.2,0.18365197]
[1643785338980,0.3,2750.6,2750.2,0.18365197]
[1643785339177,1.97747035,2750.5,2750.2,0.18365197]
[1643785339378,0.85346309,2750.4,2750.2,0.18365197]
[1643785339678,0.3,2750.4,2750.2,0.18365197]
[1643785340078,0.63524597,2750.5,2750.2,0.18365197]